fUST/lending_fUST_20260112
["ID","MTS","AMOUNT","RATE_DAILY","PERIOD"]
[401393540,1768176638615,-4135.0795736,0.00020887,2]
[401393542,1768176638624,-437.0,0.00020957,2]
[401393544,1768176638633,-500.0,0.00020986,2]
[401393546,1768176638642,-502.6605814,0.00020986,2]
[401393548,1768176638652,-308679.18678888,0.00020987,2]
[401393550,1768176638664,-4136.21574411,0.00020987,2]
[401393598,1768176640261,-627.7499999,0.00020987,2]
[401394072,1768176645928,-494.49,0.00020977,10]
[401394073,1768176645938,-6450.22944966,0.00020987,2]
[401394117,1768177205826,154.94,5e-05,2]
[401394136,1768177711438,505.45567173,0.00030136,120]
[401394137,1768177712808,511.731764,0.00030136,120]
[401394138,1768177715330,504.12370539,0.00030136,120]
[401394140,1768177718173,525.83016395,0.00030136,120]
[401394141,1768177719908,425.00994657,0.00030136,120]
[401394142,1768177720011,527.49642559,0.00030136,120]
[401394143,1768177720638,6513.91,0.00030136,120]
[401394144,1768177720885,6513.91,0.00030136,120]
[401394145,1768177721238,6513.91,0.00030136,120]
[401394146,1768177721372,6513.91,0.00030136,120]
[401394147,1768177721612,6513.91,0.00030136,120]
[401394148,1768177721841,593.48375245,0.00030136,120]
[401394149,1768177721894,6513.91,0.00030136,120]
[401394150,1768177722172,6513.91,0.00030136,120]
[401394151,1768177722422,6513.91,0.00030136,120]
[401394152,1768177722704,6513.91,0.00030136,120]
[401394153,1768177722940,6513.91,0.00030136,120]
[401394154,1768177723225,6513.91,0.00030136,120]
[401394155,1768177723461,6513.91,0.00030136,120]
[401394156,1768177723725,6513.91,0.00030136,120]
[401394157,1768177723971,6513.91,0.00030136,120]
[401394158,1768177724165,514.60578154,0.00030136,120]
[401394159,1768177724664,6513.91,0.00030136,120]
[401394160,1768177724890,6513.91,0.00030136,120]
[401394161,1768177725148,6513.91,0.00030136,120]
[401394162,1768177725441,6513.91,0.00030136,120]
[401394163,1768177725729,6513.91,0.00030136,120]
[401394164,1768177725977,6513.91,0.00030136,120]
[401394165,1768177726231,6513.91,0.00030136,120]
[401394166,1768177726487,6513.91,0.00030136,120]
[401394167,1768177726745,6513.91,0.00030136,120]
[401394168,1768177727066,6514.14544929,0.00030136,120]
[401394169,1768177728799,540.24322158,0.00030136,120]
[401394170,1768177729135,261.29087669,0.00030136,120]
[401394171,1768177732542,357.84852667,0.00030136,120]
[401394172,1768177733778,239.81900026,0.00030136,120]
[401394173,1768177736833,505.50165535,0.00030136,120]
[401394174,1768177739048,407.60874848,0.00030136,120]
[401394175,1768177747339,2431.21,0.00030136,120]
[401394176,1768177747587,2431.21,0.00030136,120]
[401394177,1768177747833,2431.21,0.00030136,120]
[401394178,1768177748275,517.20995713,0.00030136,120]
[401394179,1768177748311,2431.21,0.00030136,120]
[401394180,1768177748566,2431.21,0.00030136,120]
[401394181,1768177748806,2431.21,0.00030136,120]
[401394182,1768177749051,2431.21,0.00030136,120]
[401394183,1768177749307,2431.21,0.00030136,120]
[401394184,1768177749540,2431.21,0.00030136,120]
[401394185,1768177749810,2431.21,0.00030136,120]
[401394186,1768177750078,2431.21,0.00030136,120]
[401394187,1768177750657,2431.21,0.00030136,120]
[401394188,1768177750921,2431.21,0.00030136,120]
[401394189,1768177751072,165.09995213,0.00030136,120]
[401394190,1768177751412,2431.21,0.00030136,120]
[401394191,1768177751692,2431.21,0.00030136,120]
[401394192,1768177752014,2431.21,0.00030136,120]
[401394193,1768177752199,2431.21,0.00030136,120]
[401394194,1768177752450,2431.21,0.00030136,120]
[401394195,1768177752706,2431.21,0.00030136,120]
[401394196,1768177752951,2431.21,0.00030136,120]
[401394197,1768177753227,2431.21,0.00030136,120]
[401394198,1768177753456,2431.21,0.00030136,120]
[401394199,1768177753782,2431.21,0.00030136,120]
[401394200,1768177754032,2431.31156586,0.00030136,120]
[401394201,1768177757883,500.0,0.00030136,120]
[401394202,1768177758120,500.0,0.00030136,120]
[401394203,1768177758379,202.86433989,0.00030136,120]
[401394206,1768177769816,3944.22,0.00030136,120]
[401394207,1768177770088,3944.22,0.00030136,120]
[401394208,1768177770336,3944.22,0.00030136,120]
[401394209,1768177770994,3944.22,0.00030136,120]
[401394210,1768177771270,3944.22,0.00030136,120]
[401394211,1768177771535,3944.22,0.00030136,120]
[401394212,1768177771776,3944.22,0.00030136,120]
[401394213,1768177772021,3944.22,0.00030136,120]
[401394214,1768177772406,3944.22,0.00030136,120]
[401394215,1768177772538,3944.22,0.00030136,120]
[401394216,1768177772783,3944.22,0.00030136,120]
[401394217,1768177773024,3944.22,0.00030136,120]
[401394218,1768177773254,3944.22,0.00030136,120]
[401394219,1768177773489,3944.22,0.00030136,120]
[401394220,1768177773726,3944.22,0.00030136,120]
[401394221,1768177773961,3944.22,0.00030136,120]
[401394222,1768177774215,3944.22,0.00030136,120]
[401394223,1768177774481,3944.22,0.00030136,120]
[401394224,1768177774760,3944.22,0.00030136,120]
[401394225,1768177775002,3944.22,0.00030136,120]
[401394226,1768177775232,3944.22,0.00030136,120]
[401394227,1768177775587,3944.22,0.00030136,120]
[401394228,1768177775745,3944.22,0.00030136,120]
[401394229,1768177775969,3944.24345276,0.00030136,120]
[401394230,1768177779930,500.0,0.00030136,120]
[401394231,1768177780181,500.0,0.00030136,120]
[401394232,1768177780417,500.0,0.00030136,120]
[401394233,1768177780653,500.0,0.00030136,120]
[401394234,1768177780895,500.0,0.00030136,120]
[401394235,1768177781187,500.0,0.00030136,120]
[401394236,1768177781455,500.0,0.00030136,120]
[401394237,1768177781699,500.0,0.00030136,120]
[401394238,1768177781936,500.0,0.00030136,120]
[401394239,1768177782184,500.0,0.00030136,120]
[401394240,1768177782538,521.89810151,0.00030136,120]
[401394241,1768177804697,154.66,5e-05,2]
[401394242,1768177807744,551.32,0.00030136,120]
[401394261,1768177832114,-300.0,0.00012999,2]
[401394263,1768177832124,-300.0,0.00012999,2]
[401394265,1768177832135,-275.89904586,0.00012999,2]
[401394267,1768177832146,-924.10095414,0.00012999,2]
[401394269,1768177832156,-186.08283267,0.00012999,2]
[401394271,1768177832165,-754.29257431,0.00013,2]
[401394349,1768177837763,587.39279836,0.00030136,120]
[401394364,1768177838208,-301.09693046,0.00013,2]
[401394365,1768177838315,-10743.17513017,0.00013,2]
[401394367,1768177838326,-300.0,0.00013259,2]
[401394368,1768177838336,-300.0,0.00013259,2]
[401394369,1768177838346,-300.0,0.00013259,2]
[401394370,1768177838355,-300.0,0.00013259,2]
[401394371,1768177838365,-300.0,0.00013259,2]
[401394372,1768177838375,-300.0,0.00013259,2]
[401394373,1768177838385,-300.0,0.00013259,2]
[401394374,1768177838395,-300.0,0.00013259,2]
[401394375,1768177838404,-300.0,0.00013259,2]
[401394376,1768177838414,-300.0,0.00013259,2]
[401394377,1768177838423,-300.0,0.00013259,2]
[401394378,1768177838433,-300.0,0.00013259,2]
[401394379,1768177838443,-300.0,0.00013259,2]
[401394380,1768177838453,-300.0,0.00013259,2]
[401394381,1768177838463,-300.0,0.00013259,2]
[401394382,1768177838473,-500.0,0.00013273,2]
[401394383,1768177838483,-500.0,0.00013273,2]
[401394384,1768177838493,-500.0,0.00013273,2]
[401394385,1768177838503,-500.0,0.00013273,2]
[401394386,1768177838512,-500.0,0.00013273,2]
[401394387,1768177838523,-500.0,0.00013273,2]
[401394388,1768177838533,-500.0,0.00013273,2]
[401394389,1768177838544,-500.0,0.00013273,2]
[401394390,1768177838554,-500.0,0.00013273,2]
[401394391,1768177838564,-500.0,0.00013273,2]
[401394392,1768177838575,-500.0,0.00013273,2]
[401394393,1768177838585,-502.33157316,0.00013273,2]
[401394394,1768177838595,-500.0,0.00013273,2]
[401394395,1768177838605,-600.0,0.00013536,2]
[401394396,1768177838616,-300.0,0.00013673,2]
[401394397,1768177838626,-500.0,0.00013699,2]
[401394398,1768177838639,-500.0,0.00013699,2]
[401394399,1768177838654,-500.0,0.00013699,2]
[401394400,1768177838664,-500.0,0.00013699,2]
[401394401,1768177838676,-500.0,0.00013699,2]
[401394402,1768177838689,-500.0,0.00013699,2]
[401394403,1768177838699,-500.0,0.00013699,2]
[401394404,1768177838710,-500.0,0.00013699,2]
[401394405,1768177838720,-500.0,0.00013699,2]
[401394406,1768177838730,-500.0,0.00013699,2]
[401394407,1768177838741,-500.0,0.00013699,2]
[401394408,1768177838752,-648.74912763,0.00013699,2]
[401394409,1768177838767,-500.0,0.00013699,2]
[401394410,1768177838777,-500.0,0.00013699,2]
[401394411,1768177838787,-500.0,0.00013699,2]
[401394412,1768177838802,-500.0,0.00013699,2]
[401394413,1768177838812,-500.0,0.00013699,2]
[401394414,1768177838822,-500.0,0.00013699,2]
[401394415,1768177838832,-1000.0,0.00013821,2]
[401394416,1768177838842,-1000.0,0.00013821,2]
[401394417,1768177838852,-1000.0,0.00013821,2]
[401394418,1768177838862,-1000.0,0.00013821,2]
[401394419,1768177838871,-1000.0,0.00013821,2]
[401394420,1768177838883,-874.68815725,0.00013821,2]
[401394421,1768177838893,-1000.0,0.00013821,2]
[401394422,1768177838904,-1000.0,0.00013821,2]
[401394423,1768177838913,-1000.0,0.00013821,2]
[401394424,1768177838924,-1000.0,0.00013821,2]
[401394425,1768177838934,-1000.0,0.00013821,2]
[401394426,1768177838944,-1000.0,0.00013821,2]
[401394427,1768177838954,-600.0,0.00014221,2]
[401394428,1768177838964,-1000.0,0.00014247,2]
[401394429,1768177838978,-1000.0,0.00014247,2]
[401394430,1768177838988,-1025.59078617,0.00014247,2]
[401394431,1768177838998,-1000.0,0.00014247,2]
[401394432,1768177839008,-1000.0,0.00014247,2]
[401394433,1768177839018,-1000.0,0.00014247,2]
[401394434,1768177839028,-1000.0,0.00014247,2]
[401394435,1768177839037,-1000.0,0.00014247,2]
[401394436,1768177839047,-1000.0,0.00014247,2]
[401394437,1768177839057,-1000.0,0.00014247,2]
[401394438,1768177839067,-507.57819343,0.00014247,2]
[401394439,1768177839076,-1000.0,0.00014247,2]
[401394440,1768177839085,-1000.0,0.00014247,2]
[401394441,1768177839095,-1000.0,0.00014247,2]
[401394442,1768177839104,-420.0,0.00014256,2]
[401394443,1768177839114,-500.0,0.00014266,2]
[401394444,1768177839123,-500.0,0.00014266,2]
[401394445,1768177839134,-500.0,0.00014266,2]
[401394446,1768177839145,-597.37772998,0.00014266,2]
[401394447,1768177839155,-500.0,0.00014266,2]
[401394448,1768177839164,-500.0,0.00014266,2]
[401394449,1768177839174,-500.0,0.00014266,2]
[401394450,1768177839184,-500.0,0.00014266,2]
[401394451,1768177839194,-500.0,0.00014266,2]
[401394452,1768177839203,-500.0,0.00014266,2]
[401394453,1768177839213,-500.0,0.00014266,2]
[401394454,1768177839223,-151.0,0.000143,2]
[401394455,1768177839233,-1500.0,0.00014368,2]
[401394456,1768177839243,-1500.0,0.00014368,2]
[401394457,1768177839253,-1500.0,0.00014368,2]
[401394458,1768177839263,-1500.0,0.00014368,2]
[401394459,1768177839273,-1500.0,0.00014368,2]
[401394460,1768177839283,-1000.0,0.00014368,2]
[401394461,1768177839292,-1500.0,0.00014368,2]
[401394462,1768177839302,-1397.40421659,0.00014368,2]
[401394463,1768177839312,-1500.0,0.00014368,2]
[401394464,1768177839322,-1500.0,0.00014368,2]
[401394465,1768177839332,-1500.0,0.00014368,2]
[401394466,1768177839341,-151.0,0.000147,2]
[401394467,1768177839351,-900.0,0.00014768,2]
[401394468,1768177839361,-1500.0,0.00014795,2]
[401394469,1768177839371,-1500.0,0.00014795,2]
[401394470,1768177839381,-1500.0,0.00014795,2]
[401394471,1768177839391,-746.08427355,0.00014795,2]
[401394472,1768177839401,-879.03607709,0.00014795,2]
[401394473,1768177839411,-500.0,0.00014795,2]
[401394474,1768177839420,-1500.0,0.00014795,2]
[401394475,1768177839431,-1500.0,0.00014795,2]
[401394476,1768177839441,-643.18421046,0.00014795,2]
[401394477,1768177839452,-926.89565163,0.00014795,2]
[401394478,1768177839462,-1500.0,0.00014795,2]
[401394479,1768177839473,-1500.0,0.00014795,2]
[401394480,1768177839482,-5000.0,0.00014881,2]
[401394481,1768177839492,-720.0,0.0001489,2]
[401394482,1768177839502,-594.79530897,0.000149,2]
[401394483,1768177839513,-500.0,0.00014916,2]
[401394484,1768177839523,-506.66545063,0.00014916,2]
[401394485,1768177839533,-2000.0,0.00014916,2]
[401394486,1768177839542,-2000.0,0.00014916,2]
[401394487,1768177839551,-2000.0,0.00014916,2]
[401394488,1768177839561,-2000.0,0.00014916,2]
[401394489,1768177839571,-2000.0,0.00014916,2]
[401394490,1768177839580,-2000.0,0.00014916,2]
[401394491,1768177839591,-2000.0,0.00014916,2]
[401394492,1768177839600,-219.57774255,0.00014999,2]
[401394493,1768177839610,-1000.0,0.00015,2]
[401394494,1768177839620,-1018.62930606,0.00015,2]
[401394495,1768177839631,-33977.91469931,0.00015,2]
[401394496,1768177839640,-150.95375382,0.00015,2]
[401394497,1768177839650,-800.0,0.00015068,2]
[401394498,1768177839660,-151.0,0.000152,2]
[401394499,1768177839670,-1200.0,0.00015316,2]
[401394500,1768177839681,-500.0,0.00015341,2]
[401394501,1768177839693,-302.34346693,0.00015341,2]
[401394502,1768177839702,-468.1285193,0.00015341,2]
[401394504,1768177839711,-831.43704714,0.00015341,2]
[401394505,1768177839721,-831.43704714,0.00015341,2]
[401394506,1768177839730,-831.43704714,0.00015341,2]
[401394507,1768177839740,-831.43704714,0.00015341,2]
[401394508,1768177839749,-831.43704714,0.00015341,2]
[401394509,1768177839760,-831.43704714,0.00015341,2]
[401394510,1768177839769,-831.43704714,0.00015341,2]
[401394511,1768177839778,-831.43704714,0.00015341,2]
[401394512,1768177839787,-831.43704714,0.00015341,2]
[401394513,1768177839796,-831.43704714,0.00015341,2]
[401394514,1768177839806,-831.43704714,0.00015341,2]
[401394515,1768177839815,-831.43704714,0.00015341,2]
[401394516,1768177839824,-831.43704714,0.00015341,2]
[401394517,1768177839833,-1704.98184922,0.00015342,2]
[401394518,1768177839844,-505.31139958,0.00015342,2]
[401394519,1768177839854,-2000.0,0.00015342,2]
[401394520,1768177839865,-2000.0,0.00015342,2]
[401394521,1768177839875,-2000.0,0.00015342,2]
[401394522,1768177839885,-2000.0,0.00015342,2]
[401394523,1768177839895,-2000.0,0.00015342,2]
[401394524,1768177839906,-2500.0,0.00015464,2]
[401394525,1768177839916,-2500.0,0.00015464,2]
[401394526,1768177839927,-2500.0,0.00015464,2]
[401394527,1768177839937,-2500.0,0.00015464,2]
[401394528,1768177839947,-2500.0,0.00015464,2]
[401394529,1768177839957,-2500.0,0.00015464,2]
[401394530,1768177839966,-2500.0,0.00015464,2]
[401394531,1768177839975,-151.0,0.000156,2]
[401394541,1768177840109,-587.0,0.00015634,2]
[401394543,1768177840119,-1500.0,0.00015864,2]
[401394545,1768177840129,-151.0,0.0001589,2]
[401394547,1768177840139,-2500.0,0.0001589,2]
[401394549,1768177840147,-2500.0,0.0001589,2]
[401394551,1768177840157,-2500.0,0.0001589,2]
[401394553,1768177840165,-2500.0,0.0001589,2]
[401394554,1768177840174,-2500.0,0.0001589,2]
[401394556,1768177840183,-100000.0,0.0001599,2]
[401394558,1768177840191,-215.80455964,0.00016,2]
[401394560,1768177840200,-3020.77887688,0.00016012,2]
[401394562,1768177840209,-3000.0,0.00016012,2]
[401394564,1768177840218,-3000.0,0.00016012,2]
[401394566,1768177840227,-3000.0,0.00016012,2]
[401394568,1768177840236,-3000.0,0.00016012,2]
[401394570,1768177840245,-3000.0,0.00016012,2]
[401394572,1768177840254,-3000.0,0.00016012,2]
[401394574,1768177840263,-151.0,0.000161,2]
[401394576,1768177840272,-1600.0,0.00016164,2]
[401394578,1768177840281,-6148.63469912,0.00016338,2]
[401394580,1768177840290,-864.0,0.00016379,2]
[401394582,1768177840299,-1800.0,0.00016412,2]
[401394584,1768177840308,-500.0,0.00016438,2]
[401394586,1768177840317,-500.0,0.00016438,2]
[401394588,1768177840327,-423.20869213,0.00016438,2]
[401394590,1768177840336,-500.0,0.00016438,2]
[401394592,1768177840345,-500.0,0.00016438,2]
[401394594,1768177840354,-500.0,0.00016438,2]
[401394596,1768177840364,-164.19129262,0.00016438,2]
[401394597,1768177840374,-3000.0,0.00016438,2]
[401394599,1768177840384,-270.74684169,0.00016438,2]
[401394601,1768177840393,-3000.0,0.00016438,2]
[401394603,1768177840402,-3000.0,0.00016438,2]
[401394605,1768177840411,-3000.0,0.00016438,2]
[401394607,1768177840421,-260.15865923,0.00016438,2]
[401394609,1768177840430,-200.0,0.00016473,2]
[401394611,1768177840440,-500.0,0.0001656,2]
[401394613,1768177840450,-1378.46600243,0.0001656,2]
[401394615,1768177840459,-3500.0,0.0001656,2]
[401394617,1768177840469,-2026.48,0.0001656,2]
[401394619,1768177840479,-2000.0,0.0001656,2]
[401394621,1768177840489,-1500.0,0.0001656,2]
[401394623,1768177840499,-151.0,0.000166,2]
[401394625,1768177840509,-900.0,0.0001696,2]
[401394627,1768177840519,-2578.16970935,0.00016986,2]
[401394629,1768177840529,-3000.0,0.00016986,2]
[401394632,1768177840540,-3500.0,0.00016986,2]
[401394633,1768177840549,-3500.0,0.00016986,2]
[401394636,1768177840559,-253.07265243,0.00016999,2]
[401394638,1768177840568,-151.0,0.00017,2]
[401394639,1768177840578,-88061.69714536,0.00017,2]
[401394642,1768177840588,-2142.48470631,0.00017108,2]
[401394643,1768177840597,-324.0,0.00017112,2]
[401394646,1768177840608,-181.0,0.00017145,2]
[401394648,1768177840617,-2400.0,0.0001726,2]
[401394650,1768177840628,-411.0,0.00017301,2]
[401394652,1768177840637,-486.0,0.00017446,2]
[401394654,1768177840647,-151.0,0.000175,2]
[401394656,1768177840656,-1000.0,0.00017534,2]
[401394658,1768177840666,-3392.9582955,0.00017534,2]
[401394661,1768177840678,-2136.47349432,0.000176,2]
[401394664,1768177840688,-400.0,0.00017842,2]
[401394667,1768177840698,-5000.0,0.00017857,2]
[401394670,1768177840707,-151.0,0.000179,2]
[401394673,1768177840716,-161769.51166541,0.00018,2]
[401394676,1768177840726,-1000.0,0.00018017,2]
[401394679,1768177840736,-6148.63469912,0.00018292,2]
[401394682,1768177840745,-151.0,0.000184,2]
[401394684,1768177840753,-152.48093155,0.00018645,2]
[401394687,1768177840764,-171.65605742,0.00018645,2]
[401394690,1768177840774,-200.0,0.0001886,2]
[401394693,1768177840783,-200.0,0.0001886,2]
[401394696,1768177840792,-602971.24904903,0.00018861,2]
[401394698,1768177840801,-151.0,0.00018861,2]
[401394701,1768177840811,-151.0,0.00018861,2]
[401394704,1768177840820,-259.948193,0.00018861,2]
[401394707,1768177840829,-259.948193,0.00018861,2]
[401394710,1768177840838,-259.948193,0.00018861,2]
[401394713,1768177840847,-259.948193,0.00018861,2]
[401394717,1768177840857,-303.10001603,0.000189,2]
[401394719,1768177840867,-303.10001603,0.000189,2]
[401394722,1768177840877,-200.0,0.00018919,2]
[401394724,1768177840886,-286.56756231,0.00018999,2]
[401394726,1768177840896,-155.5739919,0.00019037,2]
[401394729,1768177840905,-304.04513064,0.00019089,2]
[401394732,1768177840914,-177.552931,0.00019178,2]
[401394734,1768177840923,-177.552931,0.00019178,2]
[401394736,1768177840932,-177.552931,0.00019178,2]
[401394738,1768177840941,-177.552931,0.00019178,2]
[401394740,1768177840951,-177.552931,0.00019178,2]
[401394742,1768177840960,-177.552931,0.00019178,2]
[401394744,1768177840969,-177.552931,0.00019178,2]
[401394745,1768177840979,-177.552931,0.00019178,2]
[401394748,1768177840988,-5000.0,0.00019345,2]
[401394749,1768177840998,-3649.47,0.000194,2]
[401394751,1768177841007,-162.99,0.000194,2]
[401394753,1768177841016,-164.08,0.000194,2]
[401394755,1768177841025,-167.64,0.000194,2]
[401394757,1768177841033,-1000.0,0.00019819,2]
[401394759,1768177841042,-244.0,0.00019819,2]
[401394761,1768177841052,-151.55000802,0.0002,2]
[401394763,1768177841061,-6148.63469912,0.00020246,2]
[401394765,1768177841071,-13943.9278324,0.0002038,2]
[401394767,1768177841080,-3448.5724485,0.0002038,2]
[401394769,1768177841089,-18347.1810187,0.0002038,2]
[401394771,1768177841099,-3501.8945146,0.0002038,2]
[401394773,1768177841108,-178.4787066,0.0002038,2]
[401394775,1768177841116,-267.7180599,0.0002038,2]
[401394777,1768177841126,-388.1342338,0.0002038,2]
[401394779,1768177841135,-3501.8945145,0.0002038,2]
[401394781,1768177841144,-388.1342338,0.0002038,2]
[401394783,1768177841154,-151.0,0.000205,3]
[401394785,1768177841163,-597.1,0.00020653,2]
[401394787,1768177841172,-195.886572,0.00020987,2]
[401394789,1768177841182,-152.655079,0.00020987,2]
[401394791,1768177841191,-320.06247219,0.00020999,2]
[401394793,1768177841201,-3000.0,0.00021,2]
[401394795,1768177841210,-26754.25,0.00021,2]
[401394797,1768177841219,-151.0,0.00021,2]
[401394799,1768177841230,-181.573329,0.00021,2]
[401394801,1768177841239,-259.948193,0.00021,2]
[401394802,1768177841250,-259.948193,0.00021,2]
[401394804,1768177841259,-259.948193,0.00021,2]
[401394806,1768177841268,-259.948193,0.00021,2]
[401394808,1768177841278,-177.552931,0.00021,2]
[401394810,1768177841287,-177.552931,0.00021,2]
[401394812,1768177841296,-177.552931,0.00021,2]
[401394814,1768177841305,-177.552931,0.00021,2]
[401394816,1768177841315,-299.999999,0.00021,2]
[401394818,1768177841324,-3000.0,0.0002101,2]
[401394820,1768177841333,-3000.0,0.0002102,2]
[401394822,1768177841342,-3000.0,0.0002103,2]
[401394824,1768177841351,-3000.0,0.0002104,2]
[401394826,1768177841360,-3000.0,0.0002105,2]
[401394828,1768177841370,-3000.0,0.0002106,2]
[401394830,1768177841381,-3000.0,0.0002107,2]
[401394832,1768177841390,-3000.0,0.0002108,2]
[401394834,1768177841400,-3000.0,0.0002109,2]
[401394836,1768177841409,-3000.0,0.000211,2]
[401394838,1768177841419,-3000.0,0.0002111,2]
[401394840,1768177841429,-3000.0,0.0002112,2]
[401394842,1768177841438,-3000.0,0.0002113,2]
[401394844,1768177841448,-3000.0,0.0002114,2]
[401394846,1768177841464,-3000.0,0.0002115,2]
[401394848,1768177841474,-24997.203168,0.0002115,2]
[401394850,1768177841484,-3000.0,0.0002116,2]
[401394852,1768177841493,-3000.0,0.0002117,2]
[401394854,1768177841502,-3000.0,0.0002118,2]
[401394856,1768177841513,-3000.0,0.0002119,2]
[401394858,1768177841527,-3000.0,0.000212,2]
[401394859,1768177841537,-151.0,0.000212,3]
[401394861,1768177841546,-151.0,0.000212,3]
[401394864,1768177841556,-3000.0,0.0002121,2]
[401394866,1768177841566,-151.0,0.0002121,2]
[401394868,1768177841575,-259.948193,0.0002121,2]
[401394869,1768177841585,-259.948193,0.0002121,2]
[401394872,1768177841595,-259.948193,0.0002121,2]
[401394873,1768177841605,-259.948193,0.0002121,2]
[401394875,1768177841615,-177.552931,0.0002121,2]
[401394877,1768177841624,-177.552931,0.0002121,2]
[401394880,1768177841636,-177.552931,0.0002121,2]
[401394882,1768177841646,-177.552931,0.0002121,2]
[401394884,1768177841655,-3000.0,0.0002122,2]
[401394886,1768177841665,-3000.0,0.0002123,2]
[401394888,1768177841677,-3000.0,0.0002124,2]
[401394889,1768177841690,-3000.0,0.0002125,2]
[401394892,1768177841700,-3000.0,0.0002126,2]
[401394894,1768177841710,-3000.0,0.0002127,2]
[401394895,1768177841719,-3000.0,0.0002128,2]
[401394897,1768177841729,-3000.0,0.0002129,2]
[401394899,1768177841738,-3000.0,0.000213,2]
[401394901,1768177841752,-151.0,0.000213,3]
[401394903,1768177841766,-151.0,0.000213,4]
[401394905,1768177841775,-3000.0,0.0002131,2]
[401394907,1768177841784,-3000.0,0.0002132,2]
[401394909,1768177841793,-3000.0,0.0002133,2]
[401394911,1768177841802,-3000.0,0.0002134,2]
[401394913,1768177841812,-3000.0,0.0002135,2]
[401394915,1768177841821,-3000.0,0.0002136,2]
[401394917,1768177841832,-3000.0,0.0002137,2]
[401394919,1768177841841,-3000.0,0.0002138,2]
[401394921,1768177841851,-3000.0,0.0002139,2]
[401394923,1768177841860,-3000.0,0.000214,2]
[401394925,1768177841869,-3000.0,0.0002141,2]
[401394927,1768177841879,-3000.0,0.0002142,2]
[401394929,1768177841889,-5085.760285,0.0002143,2]
[401394931,1768177841898,-151.0,0.00021554,2]
[401394933,1768177841907,-259.948193,0.00021554,2]
[401394935,1768177841916,-259.948193,0.00021554,2]
[401394937,1768177841925,-259.948193,0.00021554,2]
[401394939,1768177841934,-259.948193,0.00021554,2]
[401394941,1768177841943,-177.552931,0.00021554,2]
[401394943,1768177841952,-177.552931,0.00021554,2]
[401394945,1768177841962,-177.552931,0.00021554,2]
[401394947,1768177841971,-177.552935,0.00021554,2]
[401394949,1768177841980,-597.1,0.00021745,2]
[401394951,1768177841990,-1000.0,0.00021801,10]
[401394953,1768177841999,-492.0,0.00021801,10]
[401394955,1768177842008,-514.84070869,0.00021902,2]
[401394957,1768177842018,-500.0,0.00021902,2]
[401394959,1768177842027,-500.0,0.00021902,2]
[401394961,1768177842037,-500.0,0.00021902,2]
[401394963,1768177842047,-500.0,0.00021902,2]
[401394965,1768177842056,-500.0,0.00021902,2]
[401394967,1768177842067,-500.0,0.00021902,2]
[401394969,1768177842077,-250.0,0.00021902,2]
[401394971,1768177842086,-500.0,0.00021902,2]
[401394973,1768177842096,-151.0,0.00021902,2]
[401394975,1768177842105,-30000.0,0.00021902,2]
[401394977,1768177842115,-250.0,0.00021902,2]
[401394979,1768177842125,-500.0,0.00021902,2]
[401394981,1768177842134,-151.0,0.00021902,2]
[401394983,1768177842143,-250.0,0.00021902,2]